[Event "Titled Tuesday Blitz July 26 Late 2022"]
[White "Zhigalko, Sergei"]
[Black "Oparin, Grigoriy"]
[WhiteFideId "13502956"]
[BlackFideId "24125890"]
[WhiteElo "2662"]
[BlackElo "2639"]
[Result "1/2-1/2"]
[Round "11"]
[TimeControl "180+1"]
[Date "2022.07.26"]
[WhiteClock "0:00:11"]
[BlackClock "0:01:06"]

1. e4 {[%clk 0:03:00]}  c6 {[%clk 0:03:00]} 2. d4 {[%clk 0:03:01]}  d5 {[%clk 0:03:01]} 3. e5 {[%clk 0:03:01]}  c5 {[%clk 0:03:01]} 4. Nf3 {[%clk 0:03:02]}  cxd4 {[%clk 0:03:01]} 5. Qxd4 {[%clk 0:03:03]}  Nc6 {[%clk 0:02:59]} 6. Qf4 {[%clk 0:03:04]}  e6 {[%clk 0:02:59]} 7. Bd3 {[%clk 0:03:04]}  h6 {[%clk 0:02:53]} 8. O-O {[%clk 0:03:03]}  Qc7 {[%clk 0:02:52]} 9. Re1 {[%clk 0:03:00]}  Bc5 {[%clk 0:02:40]} 10. Nc3 {[%clk 0:02:55]}  a6 {[%clk 0:02:40]} 11. Qg3 {[%clk 0:02:55]}  g5 {[%clk 0:02:38]} 12. h4 {[%clk 0:02:52]}  Nge7 {[%clk 0:02:30]} 13. hxg5 {[%clk 0:02:42]}  Rg8 {[%clk 0:02:25]} 14. Qh4 {[%clk 0:01:56]}  hxg5 {[%clk 0:02:25]} 15. Bxg5 {[%clk 0:01:28]}  Bd7 {[%clk 0:02:13]} 16. Bh7 {[%clk 0:01:19]}  Rxg5 {[%clk 0:01:51]} 17. Nxg5 {[%clk 0:01:07]}  O-O-O {[%clk 0:01:32]} 18. Nxf7 {[%clk 0:01:06]}  Rf8 {[%clk 0:01:32]} 19. Nd6+ {[%clk 0:00:15]}  Kb8 {[%clk 0:01:32]} 20. Re2 {[%clk 0:00:13]}  Nxe5 {[%clk 0:01:26]} 21. Qxe7 {[%clk 0:00:10]}  Bxd6 {[%clk 0:01:26]} 22. Qg7 {[%clk 0:00:11]}  Rf7 {[%clk 0:01:14]} 23. Qg8+ {[%clk 0:00:11]}  Rf8 {[%clk 0:01:15]} 24. Qg7 {[%clk 0:00:11]}  Rf7 {[%clk 0:01:08]} 25. Qg8+ {[%clk 0:00:12]}  Rf8 {[%clk 0:01:06]} 26. Qg7 {[%clk 0:00:11]} 1/2-1/2


[Site "https://www.chess.com"]